Cogmind - Beta 13 @@@ ROGUE MODE // 2024.05.15 @ 21:18:57 Player: jonasanoj Result: Destroyed by G-34 Mercenary with Small Laser Performance ------------- Evolutions (0) 0 Regions Visited (4) 800 Robots Destroyed (13) 65 Value Destroyed (265) 265 Prototype IDs (26) 520 Alien Tech Used (0) 0 Bonus (300) 300 TOTAL SCORE: 1950 Bonus ------- Aligned with FarCom 300 Cogmind --------- Core Integrity 0/250 Matter 156/300 Energy 250/250 System Corruption 0% Temperature Cool (6) Movement Walking (190) Ox1 Location -9/Mines Parts ------- > --- POWER (1) -------- Ion Engine > --- PROPULSION (2) --- Improved Aluminum Leg Improved Aluminum Leg > --- UTILITY (2) ------ Medium Storage Unit Visual Processing Unit > --- WEAPON (2) ------- YOLO Cannon > --- INVENTORY (10) --- Ion Engine Improved Aluminum Leg Improved Aluminum Leg Visual Processing Unit Improved Assault Rifle Improved Light Cannon Improved Light Cannon Mini Grenade Launcher Hammer Peak State ------------ > --- POWER ------------ Ion Engine > --- PROPULSION ------- Improved Aluminum Leg Improved Aluminum Leg > --- UTILITY ---------- Medium Storage Unit Visual Processing Unit > --- WEAPON ----------- YOLO Cannon > --- INVENTORY -------- Ion Engine Improved Aluminum Leg Improved Aluminum Leg Visual Processing Unit Improved Assault Rifle Improved Light Cannon Improved Light Cannon Mini Grenade Launcher [Rating: 29] Favorites ----------- Power Ion Engine Engine Ion Engine Propulsion Improved Aluminum Leg Leg Improved Aluminum Leg Wheel Compact Wheel Utility Visual Processing Unit Storage Medium Storage Unit Processor Visual Processing Unit Weapon Improved Assault Rifle Energy Cannon YOLO Cannon Ballistic Gun Improved Assault Rifle Launcher Grenade Launcher Impact Weapon Hammer Build | -11 -10 -10 -10 -9 ------- Run | Yrd Mat Min Exi Min Slots Evolved . | . . . . . Power . | . . . . . Propulsion . | . . . . . Utility . | . . . . . Weapon . | . . . . . Parts Attached 23 | 7 14 . 1 1 Power 4 | 1 2 . 1 . Engine 4 | 1 2 . 1 . Core . | . . . . . Reactor . | . . . . . Propulsion 7 | 2 5 . . . Treads . | . . . . . Leg 5 | . 5 . . . Wheel 2 | 2 . . . . Hover . | . . . . . Flight . | . . . . . Utility 5 | 2 3 . . . Device . | . . . . . Storage 3 | 2 1 . . . Processor 2 | . 2 . . . Hackware . | . . . . . Protection . | . . . . . Artifact . | . . . . . Weapon 7 | 2 4 . . 1 Energy Gun . | . . . . . Energy Cannon 1 | . . . . 1 Ballistic Gun 4 | 2 2 . . . Ballistic Cannon . | . . . . . Launcher 1 | . 1 . . . Special Weapon . | . . . . . Impact Weapon 1 | . 1 . . . Slashing Weapon . | . . . . . Piercing Weapon . | . . . . . Special Melee Weapon . | . . . . . Unidentified Prototypes 1 | . 1 . . . Parts Lost 4 | . 3 1 . . Power 2 | . 1 1 . . Propulsion . | . . . . . Utility . | . . . . . Weapon 2 | . 2 . . . Highest Loss Streak 1 | . 1 1 . . To Critical Strikes . | . . . . . Average Slot Usage (%) 93 | . 90 98 97 85 Engine 12 | . 13 12 11 14 Leg 27 | . 25 28 28 28 Storage 14 | . 14 14 14 14 Processor 10 | . 6 14 14 14 Energy Cannon 1 | . . . . 14 Ballistic Gun 16 | . 22 14 14 . Impact Weapon 8 | . 3 14 14 . Naked Turns . | . . . . . Heaviest Build 33 | 12 20 20 20 33 Greatest Support 26 | 26 26 26 26 26 Greatest Overweight (x) 3 | 3 . . . 1 Average Overweight (x) . | . . . . 1 Largest Inventory Capacity 10 | 8 10 10 10 10 Average Capacity 9 | 6 8 10 10 10 Most Carried 10 | 6 8 8 9 10 Average Carried 7 | 2 7 8 8 8 Final Capacity 10 | 8 10 10 10 10 Final Carried 9 | 6 8 8 9 9 Class Distribution -------------------- 100% | Mutant Dominant Class ---------------- Mutant | -10/Materials Mutant | -10/Mines Mutant | -10/Exiles Mutant | -9/Mines Resources | -11 -10 -10 -10 -9 ----------- Run | Yrd Mat Min Exi Min Matter Collected 486 | 169 275 42 . . Remotely . | . . . . . Salvage Created 336 | . 309 27 . . Parts 24 | . 24 . . . Haulers Intercepted . | . . . . . Recyclers Shooed . | . . . . . Parts Field Recycled . | . . . . . Retrieved Matter . | . . . . . Parts Self-Destructed . | . . . . . Prevented . | . . . . . Kills | -11 -10 -10 -10 -9 ------- Run | Yrd Mat Min Exi Min Combat Hostiles Destroyed 14 | . 12 2 . . Melee 1 | . . 1 . . Guns 11 | . 10 1 . . AOE 2 | . 2 . . . Classes Destroyed 4 | . 3 1 . . Worker 1 | . 1 . . . Swarmer 6 | . 6 . . . Grunt 6 | . 6 . . . Assembled 2 | . . 2 . . Best Kill Streak 3 | . 3 2 . . Combat Bots Only 3 | . 3 2 . . Max Kills in Single Turn 2 | . 2 1 . . Gunslinging . | . . . . . Exploded 2 | . 2 . . . Melee 1 | . . 1 . . Uniques/NPCs Destroyed . | . . . . . Combat | -11 -10 -10 -10 -9 -------- Run | Yrd Mat Min Exi Min Hostile Shots Fired 131 | . 102 28 . 1 Missed 41 | . 32 9 . . Damage Taken 1003 | . 685 306 . 12 Core 256 | . 138 106 . 12 Absorbed by Shields . | . . . . . Core Remaining (%) 100 | 100 . . . . Volleys Fired 57 | . 47 7 3 . Largest 2 | . 2 1 1 . Hottest 50 | . 50 23 23 . Shots Fired 82 | . 72 7 3 . Gun 81 | . 71 7 3 . Cannon . | . . . . . Launcher 1 | . 1 . . . Special . | . . . . . Kinetic 81 | . 71 7 3 . Thermal . | . . . . . Explosive 1 | . 1 . . . Electromagnetic . | . . . . . Robot Hit Streak 7 | . 7 4 . . Robot Miss Streak 3 | . 3 2 . . Penetration Max . | . . . . . Secondary Targets 1 | . 1 . . . Max Gunslinging Chain 1 | . 1 . . . Shots Hit Robots 43 | . 37 6 . . Core Hits 19 | . 15 4 . . Critical Kills 1 | . . 1 . . Critical Parts Destroyed . | . . . . . Critical Strikes 1 | . . 1 . . Smash 1 | . . 1 . . Melee Attacks 6 | . 1 3 2 . Impact 6 | . 1 3 2 . Slashing . | . . . . . Piercing . | . . . . . Sneak Attacks 1 | . 1 . . . Combat Hostiles . | . . . . . Follow-up Attacks . | . . . . . Damage Inflicted 810 | . 699 111 . . Guns 595 | . 530 65 . . Cannons . | . . . . . Explosions 117 | . 117 . . . Melee 91 | . 45 46 . . Ramming 7 | . 7 . . . Kinetic 595 | . 530 65 . . Thermal . | . . . . . Explosive 117 | . 117 . . . Electromagnetic . | . . . . . Impact 91 | . 45 46 . . Slashing . | . . . . . Piercing . | . . . . . Highest Corruption . | . . . . . Average Corruption . | . . . . . Corruption Purged . | . . . . . Corruption Blocked . | . . . . . Overload Shots . | . . . . . Overflow Damage 5 | . 5 . . . Projectiles . | . . . . . Explosions . | . . . . . Melee 5 | . 5 . . . Knockbacks . | . . . . . Impact . | . . . . . Kinetic . | . . . . . Secondary . | . . . . . Self-Inflicted Damage . | . . . . . Shots . | . . . . . Rammed . | . . . . . Targets Rammed 2 | . 2 . . . Kicked 2 | . 2 . . . Crushed . | . . . . . Highest Temperature 11 | . 9 11 . . Average Temperature 3 | . 2 6 . . Received Heat Transfer 316 | . 210 100 . 6 Siege Activations . | . . . . . Robots Corrupted . | . . . . . Combat Hostiles . | . . . . . Parts Fried . | . . . . . Impact Corruptions 1 | . 1 . . . Robots Melted . | . . . . . Combat Hostiles . | . . . . . Parts Melted . | . . . . . Heat Transferred . | . . . . . Parts Sabotaged . | . . . . . Parts Stolen . | . . . . . Parts Stripped . | . . . . . Power Chain Reactions . | . . . . . Alert | -11 -10 -10 -10 -9 ------- Run | Yrd Mat Min Exi Min Peak Influence 156 | . 156 28 . . Initial 28 | . . 28 . . Average 46 | . 64 26 . . Maximum Alert Level . | . . . . . Low Security (%) 100 | 100 100 100 . 100 Level 1 . | . . . . . Level 2 . | . . . . . Level 3 . | . . . . . Level 4 . | . . . . . Level 5 . | . . . . . High Security . | . . . . . Max Security . | . . . . . Squads Dispatched 1 | . 1 . . . Investigation 1 | . 1 . . . Extermination . | . . . . . Reinforcement . | . . . . . Assault . | . . . . . Garrison . | . . . . . Intercept . | . . . . . Searches Triggered . | . . . . . Construction Impeded . | . . . . . Haulers Reinforced . | . . . . . Active Scanning Responses . | . . . . . Cargo Convoy Interrupts . | . . . . . Stealth | -11 -10 -10 -10 -9 --------- Run | Yrd Mat Min Exi Min Distress Signals 2 | . 2 . . . Communications Jammed . | . . . . . Distress Signals . | . . . . . Times Spotted 26 | . 21 4 . 1 Peak Tracking Total 4 | . 4 2 . . Tactical Retreats 2 | . 2 . . . Traps | -11 -10 -10 -10 -9 ------- Run | Yrd Mat Min Exi Min Traps Triggered 1 | . 1 . . . Indirectly . | . . . . . Trap Hack Attempts . | . . . . . Triggered . | . . . . . Disarmed . | . . . . . Reprogrammed . | . . . . . Reused . | . . . . . Traps Extracted . | . . . . . Installed . | . . . . . Triggered . | . . . . . Machines | -11 -10 -10 -10 -9 ---------- Run | Yrd Mat Min Exi Min Machines Disabled 2 | . . . 2 . Max in Single Turn 1 | . . . 1 . Machines Repaired . | . . . . . Machines Dismantled . | . . . . . Machines Sabotaged . | . . . . . Overloaded Fab Kills . | . . . . . Hacking | -11 -10 -10 -10 -9 --------- Run | Yrd Mat Min Exi Min Machines Accessed 10 | . 5 . 5 . Terminals 4 | . 4 . . . Fabricators . | . . . . . Repair Stations . | . . . . . Recycling Units 1 | . 1 . . . Scanalyzers . | . . . . . Garrison Access . | . . . . . Total Hacks 63 | . 13 . 50 . Successful 57 | . 7 . 50 . Failed 6 | . 6 . . . Catastrophic . | . . . . . Database Lockouts . | . . . . . Manual 4 | . 2 . 2 . Terminals 8 | . 8 . . . Fabricators . | . . . . . Repair Stations . | . . . . . Recycling Units 5 | . 5 . . . Scanalyzers . | . . . . . Garrison Access . | . . . . . Terminal Hacks 54 | . 4 . 50 . Record 50 | . 1 . 49 . Prototype ID Bank 1 | . 1 . . . Dispatch Records 1 | . 1 . . . Hauler Manifests 1 | . 1 . . . Derelict Proto ID Bank 1 | . . . 1 . Fabricator Hacks . | . . . . . Repair Station Hacks . | . . . . . Recycling Unit Hacks 3 | . 3 . . . Process 1 | . 1 . . . Report Inventory 1 | . 1 . . . Retrieve Matter 1 | . 1 . . . Scanalyzer . | . . . . . Garrison Access Hacks . | . . . . . Unauthorized Hacks . | . . . . . Terminals . | . . . . . Fabricators . | . . . . . Repair Stations . | . . . . . Recycling Units . | . . . . . Scanalyzers . | . . . . . Garrison Access . | . . . . . Data Cores Recovered . | . . . . . Used . | . . . . . Hacking Detections 4 | . 4 . . . Full Trace Events 1 | . 1 . . . Feedback Events . | . . . . . Feedback Blocked . | . . . . . Robot Schematics Acquired . | . . . . . Robots Built . | . . . . . Authchips . | . . . . . Time . | . . . . . Total Robot Build Rating . | . . . . . Part Schematics Acquired . | . . . . . Parts Built . | . . . . . Authchips . | . . . . . Time . | . . . . . Total Part Build Rating . | . . . . . Parts Repaired . | . . . . . Time . | . . . . . Parts Recycled . | . . . . . Recycled Matter 41 | . 41 . . . Retrieved Matter 41 | . 41 . . . Retrieved Components . | . . . . . Parts Scanalyzed . | . . . . . Part Schematics Acquired . | . . . . . Parts Damaged . | . . . . . Bothacking | -11 -10 -10 -10 -9 ------------ Run | Yrd Mat Min Exi Min Used RIF Installer . | . . . . . Robots Hacked . | . . . . . Non-combat . | . . . . . Combat . | . . . . . Robot Hacks Applied . | . . . . . Relay Couplers Released . | . . . . . Fabnet Peak Effective % . | . . . . . Robots Rewired . | . . . . . Allies Hacked . | . . . . . Hacks Repelled . | . . . . . Allies | -11 -10 -10 -10 -9 -------- Run | Yrd Mat Min Exi Min Total Allies . | . . . . . Largest Group . | . . . . . Highest-Rated Group . | . . . . . Highest-Rated Ally . | . . . . . Total Orders . | . . . . . Ally Attacks . | . . . . . Total Damage . | . . . . . Kills . | . . . . . Allies Corrupted . | . . . . . Allies Melted . | . . . . . Intel | -11 -10 -10 -10 -9 ------- Run | Yrd Mat Min Exi Min Robot Analysis Total . | . . . . . Derelict Logs Recovered . | . . . . . Drone Launches . | . . . . . Drone Recoveries . | . . . . . Exploration | -11 -10 -10 -10 -9 ------------- Run | Yrd Mat Min Exi Min Turns Passed 2483 | 156 1022 90 1027 188 Spaces Moved 1809 | 153 659 57 843 97 Core 5 | 5 . . . . Treads . | . . . . . Legs 1609 | . 612 57 843 97 Wheels 195 | 148 47 . . . Hover . | . . . . . Flight . | . . . . . Fastest Speed 50 | 50 90 120 120 190 Average Speed 120 | 91 117 120 120 190 Slowest Speed 200 | 200 120 120 120 190 Overloaded Moves . | . . . . . Propulsion Burnouts . | . . . . . Robots Hopped . | . . . . . Cave-ins Triggered . | . . . . . Exploration Rate (%) 41 | 4 71 15 95 21 Regions Visited 4 Branch Regions 3 Pre-discovered Areas 2 | . . . 1 1 Known Exits Taken . | . . . . . Unknown Exits Taken 4 | 1 1 1 1 . Scrap Searched 1 | . . 1 . . Spaces Dug . | . . . . . Terrain Destroyed 5 | . 5 . . . Melee . | . . . . . Projectile . | . . . . . AOE 5 | . 5 . . . Terrain Rammed . | . . . . . Walls Destroyed . | . . . . . Machines Disabled . | . . . . . Actions | -11 -10 -10 -10 -9 --------- Run | Yrd Mat Min Exi Min Total 2018 | 166 833 66 852 101 Wait 86 | . 86 . . . Move 1805 | 152 658 56 842 97 Hop . | . . . . . Pick Up 17 | 6 9 . 1 1 Fast Attach 12 | 6 6 . . . Attach 4 | 1 1 . 1 1 Detach 3 | 1 1 . . 1 Swap 8 | . 8 . . . Drop 15 | . 14 . . 1 Fire 57 | . 47 7 3 . Melee 6 | . 1 3 2 . Ram . | . . . . . Kick 2 | . 2 . . . Crush . | . . . . . Escape Stasis . | . . . . . Rewire 3 | . . . 3 . Trap . | . . . . . Miscellaneous . | . . . . . Route ------- -11/Scrapyard -10/Materials (discovered 3 exits: [*Mat] / [*Min x2]) -10/Mines -10/Exiles (discovered 2 exits: [*Min x2]) -9/Mines (discovered 1 exit: [*Mat]) History --------- Turn | Location | Event 23 | -11/Scrapyard | Discovered new exit (range 14) 157 | -11/Scrapyard | Entered Materials 303 | -10/Materials | Build established: Mutant 565 | -10/Materials | Discovered new exit (range 8) 753 | -10/Materials | Discovered new exit (range 7) 917 | -10/Materials | Discovered new exit (range 10) 1132 | -10/Materials | Core integrity fell below 50% 1179 | -10/Materials | Entered Mines 1180 | -10/Mines | Assembled infested the area 1254 | -10/Mines | Deemed a non-threat by the Exiles lab entrance 1255 | -10/Mines | Discovered new exit (range 5) 1264 | -10/Mines | Core integrity fell below 20% 1269 | -10/Mines | Entered Exiles 1300 | -10/Exiles | Discovered new exit (range 16) 1329 | -10/Exiles | Met 8R-AWN 1367 | -10/Exiles | Met EX-HEX 1418 | -10/Exiles | Met EX-BIN 1444 | -10/Exiles | Aligned with FarCom system 1445 | -10/Exiles | Given EX-Vault access code 1535 | -10/Exiles | Opened EX-Vault 1547 | -10/Exiles | Found YOLO Cannon 1635 | -10/Exiles | Warned to stay clear of 0b10 Research branches 1696 | -10/Exiles | Met EX-DEC 1758 | -10/Exiles | Visited The Gauntlet 2168 | -10/Exiles | Learned location of Zion (-6) 2283 | -10/Exiles | Discovered new exit (range 11) 2296 | -10/Exiles | Left Exiles lab with YOLO Cannon 2296 | -10/Exiles | Entered Mines 2300 | -9/Mines | Learned location of Storage (-9) 2476 | -9/Mines | Discovered new exit (range 11) 2484 | -9/Mines | Destroyed by G-34 Mercenary with Small Laser Last Messages --------------- EXIT=FOUND LOCATION=UNKNOWN GOAL=ESCAPE Receiving FarCom transmissions... Dropped Hammer. Acquired Hammer. A derelict emerges from the shadows: "Are any of them following you? I'm here trying to lose some heat after our second raid on Storage failed. Whatever you do stay away from that place, they've tightened security following our previous successful raids." World map updated: -9/Storage. ZS-MMQ(g): "We scattered so the Unaware couldn't effectively use their advantage in numbers, and I suggest you do the same." ZS-MMQ(g) slips back into the shadows. K-01 Serf collects debris. EXIT=FOUND K-01 Serf collects debris. Map ----- +----------------------------------------------------+ | ?????## ### #????????????## ??????????????? | | ??????###?# #????????????# | ???????????????? | | ??????????# #???????????## ????????????????? | | ??????????# ####???????## * #????????????????? | | ??????????# #???????# ! #????????????????? | | ??????????#### #???????# #????????????????? | | ?????????????# #????????# #????????????????? | | ?????????????# #????????## #????????????????? | | ?????????????# ########??# #????????????????? | | ?????????????# #??## #????????????????? | | ?????????????######## #??## ##????????????????? | | ????????????????##### #### ##?????????????????? | | ????????????????# #??????????????????? | | ?????????????#### ####### = #??????????????????? | | ?????????????# #?????## ##??????????????????? | | ?????????????# ## #??????###???????????????????? | | ?????????????#??# ###??????????????????????????? | | ?????????????# ## #####??????????????????????? | | ????????????## #??????????????????????? | | ????????????# ## #??????????????????????? | | ????????????# ### #??????????????????????? | | ????????????# ### #??????????????????????? | | ????????????## ##?# ###??????????????????????? | | ?????????????######### #####????????????????????? | | ??????????????????# ##???????????????????? | | ??????????????????# @ #???????????????????? | | ??????????????????# #### k ???????????? | | ??????????????????# ??? $ < ???????? | | ??????????????????#???? ## ## g #????????? | | ?????????????????????? ##??#??? #???????? | | ?????????????????????? ##????????g ????????? | | ?????????????????????# ##??????????????????????? | | ?????????????????????###????????????????????????? | | ????????????????????????????????????????????????? | | ????????????????????????????????????????????????? | | ????????????????????????????????????????????????? | | ????????????????????????????????????????????????? | | ????????????????????????????????????????????????? | | ????????????????????????????????????????????????? | | ????????????????????????????????????????????????? | | ????????????????????????????????????????????????? | | ????????????????????????????????????????????????? | | ????????????????????????????????????????????????? | | ????????????????????????????????????????????????? | | ????????????????????????????????????????????????? | | ????????????????????????????????????????????????? | | ????????????????????????????????????????????????? | | ????????????????????????????????????????????????? | | ????????????????????????????????????????????????? | | ????????????????????????????????????????????????? | +----------------------------------------------------+ Best States ------------- Heat Dissipation 25 Energy Generation 10 Energy Capacity 250 Matter Stores 199 Matter Capacity 300 Sight Range 18 Terrain Scan Density 10 Evasion (%) 55 Targeting Accuracy 5 Item Schematics ----------------- None Robot Schematics ------------------ None Fabricated ------------ Nothing Alien Tech Used ----------------- None Achievements -------------- I Survived The Infestation Challenges ------------ None Game ------ Seed ScatterAuthchipPit Manual? 0 Play Time 00:27:08 Cumulative 7.0 hours Start 2024.05.13 @ 20:55:46 End 2024.05.15 @ 21:18:57 Sessions 3 Manual Loads 0 Difficulty Rogue Special Mode None Game No. 7 Rogue 2 Adventurer 5 Explorer 0 Win Type - Total 0 Types 0/0/0/0/0/0/0/0/0 Lore% 16 Gallery% 17 Achievement% 15 Wizard Run 0 Options --------- Layout 1 ASCII 0 Keyboard 0 Movement Arrows Keybinds 0 Fullscreen 1 Font 24/Tamsyn Map View 50x35 Zoom Use 0% Tactical HUD 0 Map Filters NONE Filters NONE Steam 1 RUN: 863e5aad-f642-4c98-b760-273060e211ba